fUSD/lending_fUSD_20240818
["ID","MTS","AMOUNT","RATE_DAILY","PERIOD"]
[335188665,1723959033460,-294.7,0.0001089,2]
[335188666,1723959033470,-227.41248119,0.0001089,2]
[335188667,1723959033482,-67.28751881,0.0001089,2]
[335188668,1723959033492,-294.7,0.0001089,2]
[335188669,1723959033501,-294.7,0.0001089,2]
[335188670,1723959033511,-3.15584172,0.0001089,2]
[335188691,1723959038405,-2869.05284405,0.0001001,2]
[335188693,1723959038417,-3617.83991961,0.0001001,2]
[335188695,1723959038426,-7599.5332245,0.00010449,2]
[335188697,1723959038437,-2400.4667755,0.00010449,2]
[335188699,1723959038446,-531.10751801,0.00010713,2]
[335188701,1723959038456,-291.54415828,0.0001089,2]
[335188703,1723959038465,-294.7,0.0001089,2]
[335188705,1723959038475,-294.7,0.0001089,2]
[335188707,1723959038484,-294.7,0.0001089,2]
[335188709,1723959038493,-294.7,0.0001089,2]
[335188711,1723959038502,-294.7,0.0001089,2]
[335188713,1723959038511,-294.7,0.0001089,2]
[335188715,1723959038521,-294.7,0.0001089,2]
[335188717,1723959038529,-294.7,0.0001089,2]
[335188719,1723959038538,-130.45009166,0.0001089,2]
[335188721,1723959038553,-164.24990834,0.0001089,2]
[335188723,1723959038562,-294.7,0.0001089,2]
[335188725,1723959038572,-294.7,0.0001089,2]
[335188727,1723959038581,-294.7,0.0001089,2]
[335188729,1723959038590,-294.7,0.0001089,2]
[335188731,1723959038599,-294.7,0.0001089,2]
[335188733,1723959038609,-294.7,0.0001089,2]
[335188735,1723959038618,-294.7,0.0001089,2]
[335188737,1723959038627,-294.7,0.0001089,2]
[335188739,1723959038637,-294.7,0.0001089,2]
[335188741,1723959038645,-294.7,0.0001089,2]
[335188743,1723959038655,-294.7,0.0001089,2]
[335188745,1723959038664,-294.7,0.0001089,2]
[335188747,1723959038673,-294.7,0.0001089,2]
[335188749,1723959038682,-294.7,0.0001089,2]
[335188751,1723959038691,-294.7,0.0001089,2]
[335188753,1723959038700,-294.7,0.0001089,2]
[335188755,1723959038709,-294.7,0.0001089,2]
[335188757,1723959038719,-294.7,0.0001089,2]
[335188759,1723959038728,-294.7,0.0001089,2]
[335188761,1723959038738,-294.7,0.0001089,2]
[335188763,1723959038749,-484.31784,0.0001089,2]
[335188765,1723959038758,-181.62999869,0.00010899,2]
[335188767,1723959038767,-181.62999868,0.00010899,2]
[335188769,1723959038777,-348.26413265,0.00010899,2]
[335188771,1723959038786,-201.35989242,0.00010899,2]
[335188773,1723959038798,-155727.1428,0.000109,2]
[335188775,1723959038808,-3769.7175,0.000109,2]
[335188777,1723959038818,-2000.0,0.000109,2]
[335188779,1723959038828,-181.62999868,0.000109,2]
[335188782,1723959038840,-417.80862872,0.000109,2]
[335188784,1723959038851,-150.0,0.00010911,2]
[335188786,1723959038862,-150.0,0.00010948,2]
[335188788,1723959038872,-250.0,0.00010959,2]
[335188790,1723959038881,-500.0,0.0001096,2]
[335188792,1723959038890,-600.0,0.0001096,2]
[335188794,1723959038899,-800.0,0.0001096,2]
[335188796,1723959038908,-5800.0,0.00010966,2]
[335188798,1723959038917,-929.69649926,0.00010967,2]
[335188800,1723959038926,-200.0,0.00010973,2]
[335188802,1723959038935,-5800.0,0.00010983,2]
[335188803,1723959038944,-155.4681947,0.00010986,2]
[335188805,1723959038953,-150.0,0.00010986,2]
[335188808,1723959038962,-244.38837888,0.00010986,2]
[335188809,1723959038971,-150.0,0.00010986,2]
[335188810,1723959038980,-2005.84,0.0001099,2]
[335188811,1723959038989,-5800.0,0.00010992,2]
[335188812,1723959038999,-2000.0,0.00010999,2]
[335188813,1723959039008,-200.0,0.00010999,2]
[335188814,1723959039017,-3963.21767383,0.00010999,2]
[335188815,1723959039028,-3729.36561513,0.00010999,2]
[335188816,1723959039037,-341.12396957,0.00010999,2]
[335188817,1723959039046,-2529.79017,0.00010999,2]
[335188818,1723959039056,-484.31783,0.00010999,2]
[335188819,1723959039065,-484.31784,0.00010999,2]
[335188820,1723959039078,-484.31784,0.00010999,2]
[335188821,1723959039087,-484.31784,0.00010999,2]
[335188822,1723959039096,-484.31783,0.00010999,2]
[335188823,1723959039105,-202814.3721387,0.00011,2]
[335188824,1723959039115,-3300.48650525,0.00011,2]
[335188825,1723959039124,-2988647.14613945,0.00011,2]
[335188826,1723959039133,-833581.30352735,0.00011,2]
[335188827,1723959039142,-931891.33023956,0.00011,2]
[335188828,1723959039159,-3545.23258283,0.00011,2]
[335188829,1723959039171,-4186.27582778,0.00011,2]
[335188868,1723959043090,-370.10948871,0.00011,2]
[335188869,1723959043152,-2488679.40439128,0.00011,2]
[335188870,1723959043213,-742.96054236,0.00011,2]
[335188871,1723959043273,-916.74900749,0.00011,2]
[335188872,1723959043336,-267.06272339,0.00011,2]
[335188873,1723959044401,-1404.61876171,0.00011,2]
[335188874,1723959044412,-4911.22029618,0.00011,2]
[335188875,1723959044423,-515.811067,0.00011,2]
[335188876,1723959044433,-475.33246739,0.00011,2]
[335188877,1723959044444,-565.99524606,0.00011,2]
[335188878,1723959044455,-720.53499988,0.00011,2]
[335188879,1723959044466,-3145.92623713,0.00011,2]
[335188881,1723959046047,-31953.5332958,0.00011,2]
[335188882,1723959046058,-283.49453764,0.00011,2]
[335188883,1723959046070,-1917.4034452,0.00011,2]
[335188884,1723959046086,-290.05976315,0.00011,2]
[335188885,1723959046131,-462.27392742,0.00011,2]
[335188886,1723959046142,-850.03340466,0.00011,2]
[335188887,1723959046154,-299.07844765,0.00011,2]
[335188888,1723959046165,-746.63789763,0.00011,2]
[335188889,1723959046176,-55489.51273293,0.00011,2]
[335188890,1723959046186,-2701.23101814,0.00011,2]
[335188891,1723959046197,-4694.20147376,0.00011,2]
[335188892,1723959046209,-434.012,0.00011,2]
[335188893,1723959046220,-3398.41651,0.00011,2]
[335188894,1723959046231,-1889.98245796,0.00011,2]
[335188895,1723959046242,-268.25,0.00011,2]
[335188896,1723959046253,-1453.49,0.00011,2]
[335188897,1723959046265,-54640.62865134,0.00011,2]
[335188898,1723959046276,-1904.96994,0.00011,2]
[335188899,1723959046287,-2971.79283218,0.00011,2]
[335188900,1723959046297,-9923.04667477,0.00011,2]
[335188901,1723959046308,-1217.64466643,0.00011,2]
[335188902,1723959046320,-346.76721274,0.00011,2]
[335188903,1723959046331,-1110.1255479,0.00011,2]
[335188904,1723959046342,-3596.64044679,0.00011,2]
[335188905,1723959046353,-678.72349785,0.00011,2]
[335188906,1723959046375,-2506.87643414,0.00011,2]
[335188907,1723959046386,-8843.92475302,0.00011,2]
[335188908,1723959046396,-6140.54993197,0.00011,2]
[335188909,1723959046407,-8046.26506283,0.00011,2]
[335188910,1723959046418,-1134.13449414,0.00011,2]
[335188911,1723959046428,-261.60174887,0.00011,2]
[335188912,1723959046439,-1128.75496496,0.00011,2]
[335188913,1723959046450,-547.44,0.00011,2]
[335188914,1723959046461,-1744.32203037,0.00011,2]
[335188915,1723959046474,-417.95823573,0.00011,2]
[335188916,1723959046485,-2760.07254817,0.00011,2]
[335188917,1723959046496,-1531.57713695,0.00011,2]
[335188921,1723959072549,791.52283351,9.588e-05,2]
[335188922,1723959076562,600.0,8.22e-05,2]
[335188923,1723959078120,600.0,9.59e-05,2]
[335188925,1723959099154,700.0,8.22e-05,2]
[335188926,1723959100769,700.0,9.59e-05,2]
[335188928,1723959116743,500.0,8.22e-05,2]
[335188932,1723959127897,401.21,8.473e-05,2]
[335188938,1723959169561,791.52283351,9.59e-05,2]
[335188946,1723959201335,2425.3,9.915e-05,2]
[335188955,1723959216822,153.68,9.915e-05,2]
[335188963,1723959268572,679.4545036,9.915e-05,2]
[335188968,1723959310743,741.76,9.896e-05,2]
[335188982,1723959360041,151.24,7.918e-05,2]
[335188984,1723959368352,23890.0,9.898e-05,2]
[335188992,1723959435765,250.0,9.892e-05,2]
[335188993,1723959446328,505.46037987,8.439e-05,2]
[335189007,1723959629663,201.32,9.857e-05,2]
[335189008,1723959673479,381.14,8.219e-05,2]
[335189009,1723959767572,406.59,9.843e-05,2]
[335189010,1723959806860,2766.6366312,9.962e-05,2]
[335189011,1723959898390,200.21,9.751e-05,2]
[335189012,1723959911529,225.67787319,0.00013111,30]
[335189015,1723960023238,300.0,9.9e-05,3]
[335189024,1723960146651,362.08,8.219e-05,2]
[335189045,1723960157089,-415.05274519,9.988e-05,2]
[335189046,1723960157119,-3271.1961882,9.988e-05,2]
[335189047,1723960157152,-3064.52543602,9.988e-05,2]
[335189049,1723960181469,-3821.26442078,9.988e-05,2]
[335189050,1723960181520,-3821.26442078,9.988e-05,2]
[335189051,1723960181583,-222.22066024,9.988e-05,2]
[335189052,1723960190759,26162.30956378,9.943e-05,2]
[335189056,1723960232218,-150.0,9.999e-05,2]
[335189057,1723960232228,-316.93568837,9.999e-05,2]
[335189058,1723960232237,-300.0,9.999e-05,2]
[335189059,1723960232246,-1252.09384005,0.0001,2]
[335189060,1723960232338,-500.0,0.0001,2]
[335189061,1723960232350,-1260.90615995,0.0001,2]
[335189062,1723960232360,-653.89626809,0.0001,2]
[335189063,1723960232369,-700.0,0.0001,3]
[335189064,1723960232378,-155.38649312,0.00010026,2]
[335189065,1723960232388,-318.31588367,0.00010097,2]
[335189066,1723960232397,-1100.0,0.000101,3]
[335189067,1723960232407,-1400.0,0.000102,3]
[335189068,1723960232416,-591.87,0.00010229,2]
[335189069,1723960232426,-299.99,0.00010229,2]
[335189070,1723960232435,-225.23981007,0.00010229,2]
[335189071,1723960232445,-150.0,0.00010274,2]
[335189072,1723960232454,-1800.0,0.000103,3]
[335189073,1723960232463,-300.0,0.000104,3]
[335189074,1723960232472,-362.08,0.00010459,2]
[335189075,1723960232484,-539.55123568,0.000105,2]
[335189076,1723960232496,-4278.59876432,0.000105,2]
[335189077,1723960232505,-300.0,0.000105,3]
[335189079,1723960232514,-1257.5209126,0.00010566,2]
[335189081,1723960232524,-300.0,0.000106,3]
[335189083,1723960232533,-341.66544961,0.00010673,2]
[335189085,1723960232542,-163.34208761,0.00010697,2]
[335189087,1723960232551,-2387.55022916,0.00010699,2]
[335189090,1723960232561,-49015.70054224,0.000107,2]
[335189124,1723960235510,674.72,9.922e-05,2]
[335189128,1723960238157,-316.93568837,9.988e-05,2]
[335189129,1723960238166,-653.33059346,0.000107,2]
[335189130,1723960238177,-519.07829482,0.000107,2]
[335189131,1723960238190,-8046.48342549,0.000107,2]
[335189132,1723960238201,-10286.6181317,0.000107,2]
[335189133,1723960238212,-8017.13843609,0.000107,2]
[335189134,1723960238223,-308.66866659,0.000107,2]
[335189135,1723960238238,-404.64145571,0.000107,2]
[335189136,1723960238273,-397.64096831,0.000107,2]
[335189137,1723960238284,-804.7744272,0.000107,2]
[335189138,1723960238297,-794.86802,0.000107,2]
[335189139,1723960238308,-449189.83836423,0.000107,2]
[335189140,1723960238319,-541261.84107501,0.000107,2]
[335189141,1723960238391,-2862.10250956,0.000107,2]
[335189143,1723960238403,-3500.51760241,0.000107,2]
[335189145,1723960238414,-865.69,0.000107,2]
[335189207,1723960240281,-1922.42255462,0.000107,2]
[335189208,1723960240294,-395.86783768,0.000107,2]
[335189209,1723960240305,-651.53499998,0.000107,2]
[335189210,1723960240317,-360351.777258,0.000107,2]
[335189211,1723960240393,-430.66496321,0.000107,2]
[335189212,1723960240508,-1950.0,0.000107,2]
[335189213,1723960240626,-325.57201946,0.000107,2]
[335189217,1723960243180,-423.95581672,0.000107,2]
[335189218,1723960243238,-348886.3012967,0.000107,2]
[335189219,1723960243249,-48645.79765468,0.000107,2]
[335189220,1723960243258,-300.0,0.000107,3]
[335189221,1723960243266,-247.3361042,0.000107,2]
[335189222,1723960243275,-155.59736033,0.00010731,2]
[335189223,1723960243284,-1500.0,0.00010737,2]
[335189224,1723960243293,-1500.0,0.00010744,2]
[335189225,1723960243303,-280.64998323,0.00010791,2]
[335189226,1723960243311,-20058.5138,0.000108,2]
[335189227,1723960243321,-285.99221951,0.000108,2]
[335189228,1723960243330,-977.0,0.000108,3]
[335189229,1723960243339,-500.39111977,0.00010852,2]
[335189230,1723960243348,-183.8340141,0.00010861,2]
[335189231,1723960243357,-270.51980682,0.00010862,2]
[335189232,1723960243366,-150.0,0.0001087,2]
[335189233,1723960243375,-150.0,0.00010883,2]
[335189234,1723960243384,-178.42014,0.0001089,2]
[335189235,1723960243393,-155.0,0.0001089,2]
[335189236,1723960243402,-155.37046268,0.0001089,2]
[335189237,1723960243411,-2284.99,0.00010899,2]
[335189238,1723960243420,-500.0,0.00010899,2]
[335189239,1723960243429,-304.06728316,0.00010899,2]
[335189240,1723960243438,-5153.5218,0.000109,2]
[335189241,1723960243447,-154.25695132,0.000109,2]
[335189242,1723960243456,-150.0,0.00010931,2]
[335189243,1723960243465,-150.0,0.00010933,2]
[335189244,1723960243474,-263.24769125,0.00010936,2]
[335189245,1723960243483,-250.0,0.00010959,2]
[335189246,1723960243491,-500.0,0.0001096,2]
[335189247,1723960243500,-600.0,0.0001096,2]
[335189248,1723960243509,-700.0,0.0001096,2]
[335189249,1723960243518,-5800.0,0.00010966,2]
[335189250,1723960243527,-200.21,0.0001097,2]
[335189251,1723960243536,-5800.0,0.00010975,2]
[335189252,1723960243545,-202.99768405,0.00010979,2]
[335189253,1723960243554,-5800.0,0.00010983,2]
[335189254,1723960243563,-154418.0,0.00010986,2]
[335189255,1723960243572,-547.10490971,0.00010989,2]
[335189256,1723960243581,-5800.0,0.00010992,2]
[335189257,1723960243590,-1141.94738341,0.00010993,2]
[335189258,1723960243599,-346.49593867,0.00010999,2]
[335189260,1723960243608,-877.69820136,0.00010999,2]
[335189261,1723960243618,-2284.99,0.00010999,2]
[335189262,1723960243628,-2284.99,0.00010999,2]
[335189263,1723960243636,-2284.99,0.00010999,2]
[335189264,1723960243645,-2284.99,0.00010999,2]
[335189265,1723960243654,-2284.99,0.00010999,2]
[335189266,1723960243665,-2284.99,0.00010999,2]
[335189267,1723960243674,-2284.99,0.00010999,2]
[335189268,1723960243684,-2284.99,0.00010999,2]
[335189269,1723960243693,-2284.99,0.00010999,2]
[335189270,1723960243702,-2284.99,0.00010999,2]
[335189271,1723960243712,-2284.99,0.00010999,2]
[335189272,1723960243721,-2284.99,0.00010999,2]
[335189273,1723960243730,-2284.99,0.00010999,2]
[335189274,1723960243738,-2284.99,0.00010999,2]
[335189275,1723960243747,-2284.99,0.00010999,2]
[335189276,1723960243756,-2284.99,0.00010999,2]
[335189277,1723960243765,-2284.99,0.00010999,2]
[335189278,1723960243773,-2284.99,0.00010999,2]
[335189279,1723960243782,-2284.99,0.00010999,2]
[335189280,1723960243791,-2284.99,0.00010999,2]
[335189281,1723960243801,-2284.99,0.00010999,2]
[335189282,1723960243810,-2284.99,0.00010999,2]
[335189283,1723960243819,-2285.05110041,0.00010999,2]
[335189284,1723960243828,-499.999999,0.00010999,2]
[335189285,1723960243837,-500.0,0.00010999,2]
[335189286,1723960243846,-500.0,0.00010999,2]
[335189287,1723960243856,-500.0,0.00010999,2]
[335189288,1723960243865,-516.34481954,0.00010999,2]
[335189289,1723960243874,-255.0,0.00010999,2]
[335189290,1723960243883,-420.0,0.00010999,2]
[335189291,1723960243892,-500.0,0.00010999,2]
[335189292,1723960243902,-196.5282653,0.00010999,2]
[335189293,1723960243911,-500.0,0.00010999,2]
[335189294,1723960243920,-572.89740928,0.00010999,2]
[335189295,1723960243929,-101407.18606935,0.00011,2]
[335189296,1723960243938,-153.0,0.00011,2]
[335189297,1723960243948,-150.532,0.00011,2]
[335189298,1723960243957,-286.683,0.00011,2]
[335189299,1723960243966,-200.0,0.00011,2]
[335189300,1723960243975,-187030.48094872,0.00011,2]
[335189301,1723960244133,-357.69482547,0.00011,2]
[335189303,1723960246779,-15896.8466157,0.00011,2]
[335189304,1723960246790,-8673.86875784,0.00011,2]
[335189305,1723960246801,-500.0,0.00011,2]
[335189306,1723960246812,-13057.23584385,0.00011,2]
[335189307,1723960246825,-21642.8178528,0.00011,2]
[335189308,1723960247623,-590.0,0.00011,2]
[335189309,1723960247634,-4265.75,0.00011,2]
[335189310,1723960247644,-507.53028692,0.00011,2]
[335189311,1723960247655,-1257.99548884,0.00011,2]
[335189312,1723960247667,-1067.08377648,0.00011,2]
[335189313,1723960247677,-1160.60801783,0.00011,2]
[335189314,1723960247743,-202.99768405,0.00010949,2]
[335189315,1723960247752,-501.33339009,0.00011,2]
[335189316,1723960292488,600.0,9.275e-05,2]
[335189317,1723960292852,500.0,9.275e-05,2]
[335189320,1723960321256,500.0,9.275e-05,2]
[335189325,1723960629036,357.57,8.543e-05,2]
[335189326,1723960644831,500.0,8.129e-05,2]
[335189327,1723960645151,500.0,9.651e-05,2]
[335189328,1723960649078,503.7882285,8.891e-05,2]
[335189329,1723960655181,743.75384326,9.05e-05,2]
[335189330,1723960840534,5281.47365498,9.979e-05,2]
[335189331,1723960971733,710.24,9.978e-05,2]
[335189332,1723960982890,153.68,9.945e-05,2]
[335189333,1723961073326,166.89,9.964e-05,2]
[335189334,1723961082169,339.69,8.219e-05,2]
[335189339,1723961182482,949.25809032,9.962e-05,2]
[335189342,1723961223777,1961.68,9.937e-05,2]
[335189356,1723961255318,26162.30956378,9.943e-05,2]
[335189357,1723961255534,301.24,9.923e-05,2]
[335189360,1723961368664,250.0,9.968e-05,2]
[335189363,1723961432304,-539.78,9.996e-05,2]
[335189364,1723961432314,-550.0,0.0001,2]
[335189365,1723961432323,-300.0,0.00010001,2]
[335189366,1723961432333,-910.22,0.00010002,2]
[335189367,1723961432420,-5151.0318562,0.00010002,2]
[335189368,1723961432431,-360.246502,0.00010002,2]
[335189369,1723961432542,-734.6075021,0.00010002,2]
[335189370,1723961432554,-2943.7441397,0.00010002,2]
[335189371,1723961432564,-200.32840124,0.00010038,2]
[335189372,1723961432577,-572.91159876,0.00010038,2]
[335189373,1723961432586,-460.22,0.00010122,2]
[335189374,1723961432595,-9680.57,0.00010264,2]
[335189375,1723961432604,-500.0,0.00010359,2]
[335189376,1723961432613,-339.69,0.00010474,2]
[335189377,1723961432624,-3236.6523,0.000106,2]
[335189378,1723961432632,-773.80145128,0.000106,2]
[335189379,1723961432643,-286.18192272,0.000106,2]
[335189380,1723961432655,-903.92013879,0.000106,2]
[335189381,1723961432666,-65.28658721,0.000106,2]
[335189382,1723961432675,-600.0,0.00010645,2]
[335189383,1723961432685,-500.0,0.00010645,2]
[335189384,1723961432694,-2384.49984806,0.00010699,2]
[335189385,1723961432704,-202.99768405,0.00010861,2]
[335189386,1723961432713,-300.0,0.00010878,2]
[335189387,1723961432723,-852.78,0.00010878,2]
[335189388,1723961432732,-35803.0295,0.00010892,2]
[335189389,1723961432741,-219.6,0.00010899,2]
[335189390,1723961432751,-150.0,0.00010899,2]
[335189391,1723961432760,-9043.76670432,0.000109,2]
[335189392,1723961432771,-7226.18825408,0.000109,2]
[335189585,1723961487386,600.0,9.275e-05,2]
[335189586,1723961512247,500.0,9.275e-05,2]
[335189587,1723961555476,321.27,8.584e-05,2]
[335189597,1723961917317,20265.81057731,8.584e-05,2]
[335189599,1723962002171,478.94639185,8.584e-05,2]
[335189601,1723962057683,305.2,8.219e-05,2]
[335189603,1723962150462,502.19365881,9.861e-05,2]
[335189604,1723962233861,26162.30956378,9.943e-05,2]
[335189606,1723962287498,431.83,9.893e-05,2]
[335189607,1723962337596,155.0,9.943e-05,2]
[335189608,1723962345691,807.26052906,9.943e-05,2]
[335189611,1723962412611,547.10490971,9.943e-05,2]
[335189619,1723962460116,218.4,9.906e-05,2]
[335189622,1723962562038,289.94,8.219e-05,2]
[335189643,1723962609313,315.19288439,9.943e-05,2]
[335189649,1723962619828,250.0,9.903e-05,2]
[335189656,1723962631577,-886.22761371,9.988e-05,2]
[335189657,1723962631587,-300.0,9.998e-05,2]
[335189658,1723962631596,-11984.81,9.999e-05,2]
[335189659,1723962631611,-550.0,0.0001,2]
[335189660,1723962631620,-423.91094947,0.00010009,2]
[335189661,1723962631661,-39.06470592,0.00010009,2]
[335189662,1723962631670,-1046.50616202,0.00010009,2]
[335189663,1723962631682,-31.67375444,0.00010009,2]
[335189664,1723962631692,-813.12299415,0.00010026,2]
[335189665,1723962631701,-112.50623209,0.00010062,2]
[335189666,1723962631744,-37.64376791,0.00010062,2]
[335189667,1723962631753,-568.17,0.0001018,2]
[335189668,1723962631763,-333.2166264,0.00010471,2]
[335189669,1723962631772,-289.94,0.00010472,2]
[335189670,1723962631781,-202.99768405,0.00010505,2]
[335189671,1723962631790,-153.69,0.00010618,2]
[335189672,1723962631800,-600.0,0.00010645,2]
[335189673,1723962631811,-500.0,0.00010645,2]
[335189674,1723962631821,-415.05274519,0.00010699,2]
[335189675,1723962631830,-1122.56719716,0.00010699,2]
[335189676,1723962631839,-150.0,0.00010899,2]
[335189677,1723962631849,-163.75456642,0.00010899,2]
[335189678,1723962631858,-163.75456641,0.00010899,2]
[335189679,1723962631868,-163.75456641,0.00010899,2]
[335189680,1723962631877,-315.70268457,0.000109,2]
[335189681,1723962631889,-499.6,0.000109,2]
[335189683,1723962631900,-999.9006,0.000109,2]
[335189685,1723962631911,-1000.3932,0.000109,2]
[335189686,1723962631922,-544.02,0.000109,2]
[335189687,1723962637765,-607.8,0.000109,2]
[335189688,1723962637787,-6062.9094044,0.000109,2]
[335189689,1723962637798,-7240.00000001,0.000109,2]
[335189690,1723962637810,-484.5265281,0.000109,2]
[335189691,1723962637826,-466.00212699,0.000109,2]
[335189692,1723962637845,-2043.10614724,0.000109,2]
[335189693,1723962637857,-5406.64754168,0.000109,2]
[335189694,1723962637869,-3160.19150616,0.000109,2]
[335189695,1723962637899,-925.30673529,0.000109,2]
[335189696,1723962637911,-714.01447791,0.000109,2]
[335189697,1723962637923,-404.28989155,0.000109,2]
[335189699,1723962639737,-645.77819146,0.000109,2]
[335189700,1723962639748,-783.71000001,0.000109,2]
[335189763,1723962671360,500.0,9.275e-05,2]
[335189764,1723962690792,500.0,9.275e-05,2]
[335189771,1723962741551,932.41762921,9.803e-05,2]
[335189787,1723963004940,202.99768405,9.943e-05,2]
[335189788,1723963113701,260.94,8.219e-05,2]
[335189789,1723963124739,266.89184508,9.908e-05,2]
[335189790,1723963213424,26162.30956378,9.943e-05,2]
[335189793,1723963602149,247.89,8.219e-05,2]
[335189797,1723963639192,250.0,9.878e-05,2]
[335189802,1723963723574,536.5591496,9.943e-05,2]
[335189804,1723963784670,155.0,9.943e-05,2]
[335189805,1723963799650,654.53,9.899e-05,2]
[335189806,1723963800705,155.0,9.943e-05,2]
[335189816,1723963831739,-546.77175548,9.988e-05,2]
[335189818,1723963831748,-37.82375156,0.00010003,2]
[335189820,1723963831759,-307.64624844,0.00010003,2]
[335189822,1723963831769,-156.72237772,0.00010009,2]
[335189824,1723963831778,-156.95681725,0.00010026,2]
[335189827,1723963831789,-360.35116936,0.00010026,2]
[335189847,1723963831976,-125.40140261,0.00010026,2]
[335189849,1723963831986,-318.88541586,0.00010026,2]
[335189851,1723963831997,-124.32217099,0.00010026,2]
[335189852,1723963832006,-252.95555301,0.00010026,2]
[335189875,1723963837779,-126.13847796,0.00010026,2]
[335189876,1723963837789,-525.21401387,0.00010026,2]
[335189877,1723963837799,-168.98,0.00010036,2]
[335189878,1723963837808,-198.74236594,0.00010036,2]
[335189879,1723963837817,-188.83764001,0.0001047,2]
[335189880,1723963837828,-59.05235999,0.0001047,2]
[335189881,1723963837837,-230.85422621,0.00010645,2]
[335189882,1723963837866,-269.14577379,0.00010645,2]
[335189883,1723963837875,-500.0,0.00010645,2]
[335189884,1723963837884,-469.5768106,0.000107,2]
[335189885,1723963837908,-14103.48224663,0.000107,2]
[335189886,1723963837968,-987.54270914,0.000107,2]
[335189887,1723963837982,-485.28526725,0.000107,2]
[335189888,1723963837993,-335.76750053,0.000107,2]
[335189889,1723963838004,-3998.24190485,0.000107,2]
[335189890,1723963838022,-2599.16589238,0.000107,2]
[335189891,1723963838033,-2441.85854854,0.000107,2]
[335189892,1723963838045,-529.12011047,0.000107,2]
[335189895,1723963840069,-863.3110572,0.000107,2]
[335189896,1723963840080,-1209.54095137,0.000107,2]
[335189897,1723963840092,-15506.15074427,0.000107,2]
[335189898,1723963840101,-150.0,0.00010726,2]
[335189899,1723963840110,-150.0,0.00010733,2]
[335189900,1723963840119,-150.0,0.00010753,2]
[335189901,1723963840128,-150.0,0.00010767,2]
[335189902,1723963840137,-150.0,0.00010777,2]
[335189903,1723963840147,-150.0,0.00010787,2]
[335189904,1723963840156,-178.42015,0.0001079,2]
[335189905,1723963840165,-7128.86711628,0.00010799,2]
[335189906,1723963840176,-740.07,0.00010799,2]
[335189907,1723963840187,-18293.3724475,0.00010799,2]
[335189908,1723963840196,-704.19858187,0.000108,2]
[335189909,1723963840205,-150.5,0.000108,2]
[335189910,1723963840214,-150.0,0.0001081,2]
[335189911,1723963840225,-202.99768405,0.00010852,2]
[335189912,1723963840234,-150.0,0.00010866,2]
[335189913,1723963840243,-150.0,0.00010867,2]
[335189914,1723963840252,-523.8212,0.000109,2]
[335189915,1723963840262,-2238.28,0.000109,2]
[335189916,1723963840271,-496.83765742,0.000109,2]
[335189917,1723963840280,-173.64546013,0.000109,2]
[335189918,1723963840289,-633.24511406,0.000109,2]
[335189919,1723963840299,-5570.48586811,0.000109,2]
[335189920,1723963840308,-189.38258925,0.000109,2]
[335189921,1723963840317,-150.0,0.0001092,2]
[335189922,1723963840326,-150.0,0.00010921,2]
[335189923,1723963840336,-150.0,0.00010923,2]
[335189924,1723963840345,-150.0,0.0001093,2]
[335189925,1723963840355,-209.44699376,0.00010933,2]
[335189926,1723963840364,-150.0,0.00010954,2]
[335189927,1723963840373,-250.0,0.00010959,2]
[335189928,1723963840382,-2766.94579096,0.0001098,2]
[335189929,1723963840391,-150.0,0.00010983,2]
[335189930,1723963840403,-5800.0,0.00010983,2]
[335189931,1723963840413,-150.0,0.00010984,2]
[335189932,1723963840424,-5800.0,0.00010992,2]